fUSD/lending_fUSD_20250720
["ID","MTS","AMOUNT","RATE_DAILY","PERIOD"]
[373482451,1753019548596,-1146.42,0.00020273,2]
[373482453,1753019548605,-163.275321,0.00020273,2]
[373482454,1753019548614,-480.0,0.00020273,2]
[373482455,1753019548624,-480.0,0.00020273,2]
[373482456,1753019548633,-524.05,0.00020273,2]
[373482457,1753019548643,-480.0,0.00020273,2]
[373482458,1753019548653,-1227.36,0.00020273,2]
[373482459,1753019548662,-747.03,0.00020273,2]
[373482460,1753019548671,-480.0,0.00020273,2]
[373482461,1753019548680,-480.0,0.00020273,2]
[373482462,1753019548689,-837.4,0.00020273,2]
[373482463,1753019548699,-6522.42,0.00020273,2]
[373482464,1753019548709,-746.83,0.00020273,2]
[373482465,1753019548718,-480.0,0.00020273,2]
[373482466,1753019548727,-4486.95,0.00020273,2]
[373482467,1753019548737,-6250.65,0.00020273,2]
[373482468,1753019548747,-482.81,0.00020273,2]
[373482469,1753019548757,-690.69,0.00020273,2]
[373482471,1753019548767,-480.0,0.00020273,2]
[373482472,1753019548777,-480.0,0.00020273,2]
[373482473,1753019548786,-480.0,0.00020273,2]
[373482475,1753019548795,-559.56,0.00020273,2]
[373482476,1753019548804,-1144.78,0.00020273,2]
[373482477,1753019548813,-569.37,0.00020273,2]
[373482479,1753019548823,-1957.62,0.00020273,2]
[373482480,1753019548832,-480.0,0.00020273,2]
[373482482,1753019548842,-689.85,0.00020273,2]
[373482483,1753019548852,-480.0,0.00020273,2]
[373482484,1753019548861,-738.41,0.00020273,2]
[373482486,1753019548871,-480.0,0.00020273,2]
[373482487,1753019548880,-480.0,0.00020273,2]
[373482489,1753019548889,-668.36,0.00020273,2]
[373482490,1753019548899,-480.0,0.00020273,2]
[373482491,1753019548908,-1143.0,0.00020273,2]
[373482493,1753019548917,-932.37,0.00020273,2]
[373482494,1753019548927,-2985.1,0.00020273,2]
[373482495,1753019548936,-480.0,0.00020273,2]
[373482496,1753019548945,-939.17,0.00020273,2]
[373482497,1753019548955,-480.0,0.00020273,2]
[373482498,1753019548966,-480.0,0.00020273,2]
[373482499,1753019548975,-480.0,0.00020273,2]
[373482500,1753019548985,-1000.0,0.00020273,2]
[373482501,1753019548995,-480.0,0.00020273,2]
[373482502,1753019549005,-1924.75,0.00020273,2]
[373482503,1753019549015,-527.35,0.00020273,2]
[373482504,1753019549025,-601.3,0.00020273,2]
[373482505,1753019549035,-1898.09,0.00020273,2]
[373482506,1753019549044,-508.8,0.00020273,2]
[373482507,1753019549053,-3502.66,0.00020273,2]
[373482508,1753019549062,-359.7,0.00020273,2]
[373482509,1753019549073,-986.11,0.00020273,2]
[373482510,1753019549082,-480.0,0.00020273,2]
[373482511,1753019549092,-1553.54,0.00020273,2]
[373482512,1753019549102,-480.0,0.00020273,2]
[373482513,1753019549111,-480.0,0.00020273,2]
[373482514,1753019549121,-947.48,0.00020273,2]
[373482515,1753019549131,-480.0,0.00020273,2]
[373482516,1753019549141,-1483.86,0.00020273,2]
[373482517,1753019549150,-1070.15,0.00020273,2]
[373482518,1753019549160,-480.0,0.00020273,2]
[373482519,1753019549170,-532.55,0.00020273,2]
[373482520,1753019549181,-1553.37,0.00020273,2]
[373482521,1753019549190,-480.0,0.00020273,2]
[373482522,1753019549199,-480.0,0.00020273,2]
[373482523,1753019549208,-480.0,0.00020273,2]
[373482524,1753019549218,-617.94,0.00020273,2]
[373482525,1753019549227,-1194.6,0.00020273,2]
[373482526,1753019549237,-828.22,0.00020273,2]
[373482527,1753019549246,-480.0,0.00020273,2]
[373482528,1753019549256,-180.46,0.00020273,2]
[373482529,1753019549265,-1041.33,0.00020273,2]
[373482530,1753019549274,-1596.73,0.00020273,2]
[373482531,1753019549283,-1794.49,0.00020273,2]
[373482532,1753019549293,-480.0,0.00020273,2]
[373482533,1753019549303,-2119.05,0.00020273,2]
[373482534,1753019549313,-630.93,0.00020273,2]
[373482535,1753019549322,-4638.84,0.00020273,2]
[373482536,1753019549332,-480.0,0.00020273,2]
[373482537,1753019549343,-1777.66,0.00020273,2]
[373482538,1753019549352,-556.83,0.00020273,2]
[373482539,1753019549367,-480.0,0.00020273,2]
[373482540,1753019549380,-1897.84,0.00020273,2]
[373482541,1753019549390,-1256.18,0.00020273,2]
[373482542,1753019549400,-2882.58,0.00020273,2]
[373482543,1753019549409,-979.84,0.00020273,2]
[373482544,1753019549418,-480.0,0.00020273,2]
[373482545,1753019549428,-707.99,0.00020273,2]
[373482546,1753019549437,-574.55,0.00020273,2]
[373482547,1753019549447,-38134.22,0.00020273,2]
[373482548,1753019549456,-1106.08,0.00020273,2]
[373482549,1753019549470,-480.0,0.00020273,2]
[373482550,1753019549480,-480.0,0.00020273,2]
[373482551,1753019549489,-480.0,0.00020273,2]
[373482552,1753019549499,-480.0,0.00020273,2]
[373482553,1753019549510,-773.09,0.00020273,2]
[373482554,1753019549519,-3225.28,0.00020273,2]
[373482555,1753019549529,-2593.99,0.00020273,2]
[373482556,1753019549539,-480.0,0.00020273,2]
[373482557,1753019549550,-1974.09,0.00020273,2]
[373482558,1753019549560,-10449.6,0.00020273,2]
[373482559,1753019549569,-2698.38,0.00020273,2]
[373482560,1753019549579,-1260.52,0.00020273,2]
[373482561,1753019549588,-3171.67,0.00020273,2]
[373482562,1753019549598,-480.0,0.00020273,2]
[373482563,1753019549607,-480.0,0.00020273,2]
[373482564,1753019549616,-2207.57,0.00020273,2]
[373482565,1753019549626,-4837.24,0.00020273,2]
[373482566,1753019549636,-480.0,0.00020273,2]
[373482567,1753019549647,-1908.42,0.00020273,2]
[373482568,1753019549657,-480.0,0.00020273,2]
[373482569,1753019549667,-480.0,0.00020273,2]
[373482570,1753019549677,-3925.2,0.00020273,2]
[373482571,1753019549687,-1106.38,0.00020273,2]
[373482572,1753019549697,-480.0,0.00020273,2]
[373482573,1753019549707,-191.1,0.00020273,2]
[373482574,1753019549718,-480.0,0.00020273,2]
[373482575,1753019549727,-675.33,0.00020273,2]
[373482576,1753019549737,-1549.05,0.00020273,2]
[373482577,1753019549746,-565.43,0.00020273,2]
[373482578,1753019549755,-4186.58,0.00020273,2]
[373482579,1753019549765,-480.0,0.00020273,2]
[373482580,1753019549778,-920.58,0.00020273,2]
[373482581,1753019549787,-575.28,0.00020273,2]
[373482582,1753019549797,-480.0,0.00020273,2]
[373482583,1753019549808,-480.0,0.00020273,2]
[373482584,1753019549819,-480.0,0.00020273,2]
[373482585,1753019549829,-1601.32,0.00020273,2]
[373482586,1753019549839,-480.0,0.00020273,2]
[373482587,1753019549849,-2912.14,0.00020273,2]
[373482588,1753019549859,-480.0,0.00020273,2]
[373482589,1753019549869,-501.28,0.00020273,2]
[373482590,1753019549879,-480.0,0.00020273,2]
[373482591,1753019549889,-1575.77,0.00020273,2]
[373482592,1753019549899,-1649.03,0.00020273,2]
[373482593,1753019549909,-434.37,0.00020273,2]
[373482594,1753019549919,-4784.89,0.00020273,2]
[373482595,1753019549931,-1937.56,0.00020273,2]
[373482596,1753019549942,-16754.36,0.00020273,2]
[373482597,1753019549952,-1894.53,0.00020273,2]
[373482598,1753019549963,-597.32,0.00020273,2]
[373482599,1753019549973,-480.0,0.00020273,2]
[373482600,1753019549982,-546.96,0.00020273,2]
[373482601,1753019549992,-480.0,0.00020273,2]
[373482602,1753019550001,-673.9,0.00020273,2]
[373482603,1753019550011,-1244.68,0.00020273,2]
[373482604,1753019550021,-480.0,0.00020273,2]
[373482605,1753019550030,-1980.55,0.00020273,2]
[373482606,1753019550040,-480.0,0.00020273,2]
[373482607,1753019550050,-480.0,0.00020273,2]
[373482608,1753019550059,-480.0,0.00020273,2]
[373482609,1753019550069,-1245.96,0.00020273,2]
[373482610,1753019550079,-6803.71,0.00020273,2]
[373482611,1753019550090,-480.0,0.00020273,2]
[373482612,1753019550100,-871.27,0.00020273,2]
[373482613,1753019550109,-1112.24,0.00020273,2]
[373482614,1753019550119,-1360.71,0.00020273,2]
[373482615,1753019550129,-480.0,0.00020273,2]
[373482616,1753019550139,-579.47,0.00020273,2]
[373482617,1753019550149,-480.0,0.00020273,2]
[373482618,1753019550159,-2360.18,0.00020273,2]
[373482619,1753019550169,-1144.57,0.00020273,2]
[373482620,1753019550179,-709.9,0.00020273,2]
[373482621,1753019550188,-957.17,0.00020273,2]
[373482622,1753019550198,-3060.53,0.00020273,2]
[373482623,1753019550208,-1014.42,0.00020273,2]
[373482624,1753019550219,-666.51,0.00020273,2]
[373482625,1753019550229,-1099.37,0.00020273,2]
[373482626,1753019550239,-1194.62,0.00020273,2]
[373482627,1753019550250,-622.5,0.00020273,2]
[373482628,1753019550260,-480.0,0.00020273,2]
[373482629,1753019550270,-1106.14,0.00020273,2]
[373482630,1753019550280,-4161.68,0.00020273,2]
[373482631,1753019550289,-1224.46,0.00020273,2]
[373482632,1753019550299,-3588.19,0.00020273,2]
[373482633,1753019550310,-1009.8,0.00020273,2]
[373482634,1753019550320,-480.0,0.00020273,2]
[373482635,1753019550330,-759.09,0.00020273,2]
[373482636,1753019550339,-480.0,0.00020273,2]
[373482637,1753019550349,-480.0,0.00020273,2]
[373482638,1753019550359,-548.98,0.00020273,2]
[373482639,1753019550369,-892.48,0.00020273,2]
[373482640,1753019550379,-2738.0,0.00020273,2]
[373482641,1753019550389,-2154.18,0.00020273,2]
[373482642,1753019550404,-1765.61,0.00020273,2]
[373482643,1753019550414,-563.37,0.00020273,2]
[373482644,1753019550425,-480.0,0.00020273,2]
[373482645,1753019550435,-1264.87,0.00020273,2]
[373482646,1753019550445,-1317.6,0.00020273,2]
[373482647,1753019550455,-3701.58,0.00020273,2]
[373482648,1753019550467,-1224.02,0.00020273,2]
[373482649,1753019550479,-1417.35,0.00020273,2]
[373482650,1753019550489,-494.3,0.00020273,2]
[373482651,1753019550499,-2675.44,0.00020273,2]
[373482652,1753019550508,-2516.48,0.00020273,2]
[373482653,1753019550518,-1280.96,0.00020273,2]
[373482654,1753019550528,-1234.43,0.00020273,2]
[373482655,1753019550537,-480.0,0.00020273,2]
[373482656,1753019550549,-1639.88,0.00020273,2]
[373482657,1753019550559,-480.0,0.00020273,2]
[373482658,1753019550570,-2371.21,0.00020273,2]
[373482659,1753019550580,-2621.63,0.00020273,2]
[373482660,1753019550589,-1781.89,0.00020273,2]
[373482661,1753019550600,-4290.9,0.00020273,2]
[373482662,1753019550610,-673.12,0.00020273,2]
[373482663,1753019550620,-2112.39,0.00020273,2]
[373482664,1753019550630,-480.0,0.00020273,2]
[373482665,1753019550641,-509.06,0.00020273,2]
[373482666,1753019550651,-686.73,0.00020273,2]
[373482667,1753019550661,-1034.48,0.00020273,2]
[373482668,1753019550672,-578.43,0.00020273,2]
[373482669,1753019550683,-2302.39,0.00020273,2]
[373482670,1753019550694,-1841.2,0.00020273,2]
[373482671,1753019550704,-810.97,0.00020273,2]
[373482672,1753019550715,-480.0,0.00020273,2]
[373482673,1753019550725,-510.33,0.00020273,2]
[373482674,1753019550735,-1875.92,0.00020273,2]
[373482675,1753019550746,-1656.2,0.00020273,2]
[373482676,1753019550755,-1830.19,0.00020273,2]
[373482677,1753019550765,-1530.02,0.00020273,2]
[373482678,1753019550777,-4600.51,0.00020273,2]
[373482679,1753019550787,-678.36,0.00020273,2]
[373482680,1753019550798,-1122.81,0.00020273,2]
[373482681,1753019550810,-755.77,0.00020273,2]
[373482682,1753019550822,-1854.23,0.00020273,2]
[373482683,1753019550831,-3405.09,0.00020273,2]
[373482684,1753019550842,-363.76,0.00020273,2]
[373482685,1753019550853,-500.0,0.00020274,2]
[373482686,1753019550863,-282.86,0.00020283,2]
[373482687,1753019550874,-152.0,0.00020288,4]
[373482688,1753019550884,-168.0,0.00020309,2]
[373482689,1753019550894,-274.00696943,0.00020328,2]
[373482690,1753019550904,-184.25,0.00020335,2]
[373482691,1753019550914,-604.45055542,0.00020341,2]
[373482692,1753019550924,-5000.0,0.00020343,2]
[373482693,1753019550933,-5000.0,0.00020353,2]
[373482694,1753019550944,-239.84119403,0.00020358,2]
[373482695,1753019550954,-1500.0,0.00020368,2]
[373482696,1753019550965,-1500.0,0.00020368,2]
[373482697,1753019550975,-168.0,0.0002037,2]
[373482698,1753019550985,-210.939392,0.00020383,2]
[373482699,1753019550994,-151.0,0.00020383,2]
[373482700,1753019551004,-152.422035,0.00020383,2]
[373482701,1753019551013,-152.422035,0.00020383,2]
[373482702,1753019551023,-309.984824,0.00020383,2]
[373482703,1753019551033,-309.984824,0.00020383,2]
[373482704,1753019551042,-151.0,0.00020383,2]
[373482705,1753019551052,-151.0,0.00020383,2]
[373482706,1753019551061,-151.0,0.00020383,2]
[373482707,1753019551071,-178.669679,0.00020383,2]
[373482708,1753019551081,-178.669679,0.00020383,2]
[373482709,1753019551091,-151.0,0.00020383,2]
[373482710,1753019551100,-480.0,0.00020383,2]
[373482711,1753019551111,-158.307468,0.00020383,2]
[373482712,1753019551121,-480.0,0.00020383,2]
[373482713,1753019551131,-480.0,0.00020383,2]
[373482714,1753019551142,-480.0,0.00020383,2]
[373482715,1753019551151,-480.0,0.00020383,2]
[373482716,1753019551161,-323.573606,0.00020383,2]
[373482717,1753019551174,-991.02,0.00020383,2]
[373482718,1753019551185,-323.573606,0.00020383,2]
[373482719,1753019551197,-480.0,0.00020383,2]
[373482720,1753019551207,-573.77,0.00020383,2]
[373482721,1753019551217,-759.54,0.00020383,2]
[373482722,1753019551227,-1132.31,0.00020383,2]
[373482723,1753019551237,-817.3,0.00020383,2]
[373482724,1753019551247,-5060.37,0.00020383,2]
[373482725,1753019551257,-561.39,0.00020383,2]
[373482726,1753019551267,-1056.44,0.00020383,2]
[373482727,1753019551277,-561.76,0.00020383,2]
[373482728,1753019551287,-1722.64,0.00020383,2]
[373482729,1753019551297,-1184.53,0.00020383,2]
[373482730,1753019551307,-460.0,0.00020383,2]
[373482731,1753019551316,-708.25,0.00020383,2]
[373482732,1753019551327,-640.15,0.00020383,2]
[373482733,1753019551336,-654.33,0.00020383,2]
[373482734,1753019551348,-525.6,0.00020383,2]
[373482735,1753019551358,-480.0,0.00020383,2]
[373482736,1753019551368,-2315.41,0.00020383,2]
[373482737,1753019551378,-486.88,0.00020383,2]
[373482738,1753019551388,-1036.06,0.00020383,2]
[373482739,1753019551398,-529.02,0.00020383,2]
[373482740,1753019551408,-1025.76,0.00020383,2]
[373482741,1753019551418,-573.81,0.00020383,2]
[373482742,1753019551428,-802.35,0.00020383,2]
[373482743,1753019551438,-480.0,0.00020383,2]
[373482744,1753019551449,-619.12,0.00020383,2]
[373482745,1753019551459,-480.0,0.00020383,2]
[373482746,1753019551475,-480.0,0.00020383,2]
[373482747,1753019551485,-933.84,0.00020383,2]
[373482748,1753019551495,-1899.42,0.00020383,2]
[373482749,1753019551507,-1365.37,0.00020383,2]
[373482750,1753019551517,-269.74,0.00020383,2]
[373482751,1753019551528,-480.0,0.00020383,2]
[373482752,1753019551538,-643.56,0.00020383,2]
[373482753,1753019551549,-480.0,0.00020383,2]
[373482754,1753019551558,-480.0,0.00020383,2]
[373482755,1753019551569,-491.14,0.00020383,2]
[373482756,1753019551579,-513.7,0.00020383,2]
[373482757,1753019551590,-742.91,0.00020383,2]
[373482758,1753019551600,-770.53,0.00020383,2]
[373482759,1753019551611,-480.0,0.00020383,2]
[373482760,1753019551620,-480.0,0.00020383,2]
[373482761,1753019551630,-480.0,0.00020383,2]
[373482762,1753019551642,-703.59,0.00020383,2]
[373482763,1753019551652,-559.29,0.00020383,2]
[373482764,1753019551662,-6566.95,0.00020383,2]
[373482765,1753019551673,-480.0,0.00020383,2]
[373482766,1753019551683,-649.82,0.00020383,2]
[373482767,1753019551693,-480.0,0.00020383,2]
[373482768,1753019551703,-507.08,0.00020383,2]
[373482769,1753019551714,-652.56,0.00020383,2]
[373482770,1753019551725,-873.97,0.00020383,2]
[373482771,1753019551735,-1133.69,0.00020383,2]
[373482772,1753019551744,-1078.11,0.00020383,2]
[373482773,1753019551754,-2024.83,0.00020383,2]
[373482774,1753019551764,-882.42,0.00020383,2]
[373482775,1753019551773,-562.85,0.00020383,2]
[373482776,1753019551783,-528.35,0.00020383,2]
[373482777,1753019551793,-808.63,0.00020383,2]
[373482778,1753019551803,-481.92,0.00020383,2]
[373482779,1753019551813,-698.42,0.00020383,2]
[373482780,1753019551823,-1098.19,0.00020383,2]
[373482781,1753019551832,-1470.4,0.00020383,2]
[373482782,1753019551842,-480.0,0.00020383,2]
[373482783,1753019551852,-480.0,0.00020383,2]
[373482784,1753019551863,-530.18,0.00020383,2]
[373482785,1753019551873,-542.4,0.00020383,2]
[373482786,1753019551885,-2168.69,0.00020383,2]
[373482787,1753019551897,-480.0,0.00020383,2]
[373482788,1753019551907,-480.0,0.00020383,2]
[373482789,1753019551917,-810.65,0.00020383,2]
[373482790,1753019551927,-509.75,0.00020383,2]
[373482791,1753019551937,-562.12,0.00020383,2]
[373482792,1753019551947,-1074.62,0.00020383,2]
[373482793,1753019551957,-480.0,0.00020383,2]
[373482794,1753019551968,-585.83,0.00020383,2]
[373482795,1753019551978,-488.38,0.00020383,2]
[373482796,1753019551988,-1248.2,0.00020383,2]
[373482797,1753019551998,-512.42,0.00020383,2]
[373482798,1753019552007,-1171.8,0.00020383,2]
[373482799,1753019552018,-290.16,0.00020383,2]
[373482800,1753019552334,-989.68,0.00020383,2]
[373482801,1753019552343,-480.0,0.00020383,2]
[373482802,1753019552353,-1298.15,0.00020383,2]
[373482803,1753019552363,-1020.25,0.00020383,2]
[373482804,1753019552373,-507.62,0.00020383,2]
[373482805,1753019552382,-523.15,0.00020383,2]
[373482806,1753019552391,-3702.53,0.00020383,2]
[373482807,1753019552402,-556.53,0.00020383,2]
[373482808,1753019552411,-480.0,0.00020383,2]
[373482809,1753019552422,-1136.01,0.00020383,2]
[373482810,1753019552432,-480.0,0.00020383,2]
[373482811,1753019552441,-480.0,0.00020383,2]
[373482812,1753019552451,-489.5,0.00020383,2]
[373482813,1753019552462,-1095.88,0.00020383,2]
[373482814,1753019552474,-480.0,0.00020383,2]
[373482815,1753019552484,-1608.55,0.00020383,2]
[373482816,1753019552494,-480.0,0.00020383,2]
[373482817,1753019552504,-3923.46,0.00020383,2]
[373482818,1753019552515,-2237.11,0.00020383,2]
[373482819,1753019552525,-705.3,0.00020383,2]
[373482820,1753019552535,-480.0,0.00020383,2]
[373482821,1753019552547,-834.1,0.00020383,2]
[373482822,1753019552559,-836.85,0.00020383,2]
[373482823,1753019552568,-480.0,0.00020383,2]
[373482824,1753019552579,-480.0,0.00020383,2]
[373482825,1753019552588,-209.02,0.00020383,2]
[373482826,1753019552598,-893.54,0.00020383,2]
[373482827,1753019552608,-971.86,0.00020383,2]
[373482828,1753019552618,-697.5,0.00020383,2]
[373482829,1753019552628,-525.44,0.00020383,2]
[373482830,1753019552638,-730.73,0.00020383,2]
[373482831,1753019552648,-658.53,0.00020383,2]
[373482832,1753019552658,-1394.43,0.00020383,2]
[373482833,1753019552667,-1146.42,0.00020383,2]
[373482834,1753019552677,-483.9,0.00020383,2]
[373482835,1753019552687,-480.0,0.00020383,2]
[373482836,1753019552697,-524.05,0.00020383,2]
[373482837,1753019552707,-480.0,0.00020383,2]
[373482838,1753019552719,-1227.36,0.00020383,2]
[373482839,1753019552729,-747.03,0.00020383,2]
[373482840,1753019552738,-480.0,0.00020383,2]
[373482841,1753019552748,-837.4,0.00020383,2]
[373482842,1753019552758,-6522.42,0.00020383,2]
[373482843,1753019552767,-746.83,0.00020383,2]
[373482844,1753019552777,-480.0,0.00020383,2]
[373482845,1753019552787,-4486.95,0.00020383,2]
[373482846,1753019552797,-6250.65,0.00020383,2]
[373482847,1753019552807,-482.81,0.00020383,2]
[373482848,1753019552816,-480.0,0.00020383,2]
[373482849,1753019552826,-480.0,0.00020383,2]
[373482850,1753019552835,-690.69,0.00020383,2]
[373482851,1753019552845,-1144.78,0.00020383,2]
[373482852,1753019552854,-569.37,0.00020383,2]
[373482853,1753019552864,-1957.62,0.00020383,2]
[373482854,1753019552873,-480.0,0.00020383,2]
[373482855,1753019552883,-689.85,0.00020383,2]
[373482856,1753019552893,-738.41,0.00020383,2]
[373482857,1753019552902,-480.0,0.00020383,2]
[373482858,1753019552912,-480.0,0.00020383,2]
[373482859,1753019552922,-668.36,0.00020383,2]
[373482860,1753019552931,-480.0,0.00020383,2]
[373482861,1753019552941,-932.37,0.00020383,2]
[373482862,1753019552950,-1143.0,0.00020383,2]
[373482863,1753019552959,-2985.1,0.00020383,2]
[373482864,1753019552969,-480.0,0.00020383,2]
[373482865,1753019552979,-939.17,0.00020383,2]
[373482866,1753019552988,-480.0,0.00020383,2]
[373482867,1753019552998,-480.0,0.00020383,2]
[373482868,1753019553007,-1000.0,0.00020383,2]
[373482869,1753019553016,-1924.75,0.00020383,2]
[373482870,1753019553025,-527.35,0.00020383,2]
[373482871,1753019553035,-601.3,0.00020383,2]
[373482872,1753019553045,-1898.09,0.00020383,2]
[373482873,1753019553054,-3502.66,0.00020383,2]
[373482874,1753019553064,-986.11,0.00020383,2]
[373482875,1753019553074,-480.0,0.00020383,2]
[373482876,1753019553083,-1553.54,0.00020383,2]
[373482877,1753019553092,-480.0,0.00020383,2]
[373482878,1753019553102,-480.0,0.00020383,2]
[373482879,1753019553113,-947.48,0.00020383,2]
[373482880,1753019553123,-480.0,0.00020383,2]
[373482881,1753019553340,-1483.86,0.00020383,2]
[373482882,1753019553350,-1070.15,0.00020383,2]
[373482883,1753019553360,-532.55,0.00020383,2]
[373482884,1753019553369,-1553.37,0.00020383,2]
[373482885,1753019553379,-480.0,0.00020383,2]
[373482886,1753019553388,-480.0,0.00020383,2]
[373482887,1753019553398,-1194.6,0.00020383,2]
[373482888,1753019553407,-828.22,0.00020383,2]
[373482889,1753019553417,-480.0,0.00020383,2]
[373482890,1753019553427,-1041.33,0.00020383,2]
[373482891,1753019553436,-1596.73,0.00020383,2]
[373482892,1753019553446,-1794.49,0.00020383,2]
[373482893,1753019553455,-2119.05,0.00020383,2]
[373482894,1753019553466,-630.93,0.00020383,2]
[373482895,1753019553480,-4638.84,0.00020383,2]
[373482896,1753019553490,-1777.66,0.00020383,2]
[373482897,1753019553500,-556.83,0.00020383,2]
[373482898,1753019553510,-480.0,0.00020383,2]
[373482899,1753019553522,-1897.84,0.00020383,2]
[373482900,1753019553532,-1256.18,0.00020383,2]
[373482901,1753019553542,-2882.58,0.00020383,2]
[373482902,1753019553553,-979.84,0.00020383,2]
[373482903,1753019553565,-480.0,0.00020383,2]
[373482904,1753019553575,-707.99,0.00020383,2]
[373482905,1753019553585,-574.55,0.00020383,2]
[373482906,1753019553595,-38134.22,0.00020383,2]
[373482907,1753019553605,-1106.08,0.00020383,2]
[373482908,1753019553615,-472.14,0.00020383,2]
[373482909,1753019553625,-480.0,0.00020383,2]
[373482910,1753019553637,-480.0,0.00020383,2]
[373482911,1753019553647,-773.09,0.00020383,2]
[373482912,1753019553657,-3225.28,0.00020383,2]
[373482913,1753019553667,-480.0,0.00020383,2]
[373482914,1753019553677,-2593.99,0.00020383,2]
[373482915,1753019553687,-1974.09,0.00020383,2]
[373482916,1753019553697,-10449.6,0.00020383,2]
[373482917,1753019553707,-2698.38,0.00020383,2]
[373482918,1753019553717,-1260.52,0.00020383,2]
[373482919,1753019553727,-3171.67,0.00020383,2]
[373482920,1753019553737,-480.0,0.00020383,2]
[373482921,1753019553747,-189.01341967,0.00020383,2]
[373482922,1753019553756,-2207.57,0.00020383,2]
[373482923,1753019553766,-4837.24,0.00020383,2]
[373482924,1753019553776,-480.0,0.00020383,2]
[373482925,1753019553786,-1908.42,0.00020383,2]
[373482926,1753019553796,-260.32,0.00020383,2]
[373482927,1753019553806,-480.0,0.00020383,2]
[373482928,1753019553815,-3925.2,0.00020383,2]
[373482929,1753019553825,-1106.38,0.00020383,2]
[373482930,1753019553835,-480.0,0.00020383,2]
[373482931,1753019553844,-480.0,0.00020383,2]
[373482932,1753019553854,-675.33,0.00020383,2]
[373482933,1753019553863,-1549.05,0.00020383,2]
[373482934,1753019553873,-4186.58,0.00020383,2]
[373482935,1753019553883,-480.0,0.00020383,2]
[373482936,1753019553894,-920.58,0.00020383,2]
[373482937,1753019553904,-575.28,0.00020383,2]
[373482938,1753019553914,-480.0,0.00020383,2]
[373482939,1753019553923,-480.0,0.00020383,2]
[373482940,1753019553933,-1601.32,0.00020383,2]
[373482941,1753019553942,-480.0,0.00020383,2]
[373482942,1753019553952,-2912.14,0.00020383,2]
[373482943,1753019553961,-501.28,0.00020383,2]
[373482944,1753019553972,-480.0,0.00020383,2]
[373482945,1753019553981,-480.0,0.00020383,2]
[373482946,1753019553991,-1575.77,0.00020383,2]
[373482947,1753019554001,-1649.03,0.00020383,2]
[373482948,1753019554010,-4784.89,0.00020383,2]
[373482949,1753019554020,-1937.56,0.00020383,2]
[373482950,1753019554030,-16754.36,0.00020383,2]
[373482951,1753019554040,-1894.53,0.00020383,2]
[373482952,1753019554049,-597.32,0.00020383,2]
[373482953,1753019554059,-480.0,0.00020383,2]
[373482954,1753019554068,-480.0,0.00020383,2]
[373482955,1753019554077,-673.9,0.00020383,2]
[373482956,1753019554087,-1244.68,0.00020383,2]
[373482957,1753019554096,-548.91,0.00020383,2]
[373482958,1753019554106,-1980.55,0.00020383,2]